[Event "Titled Tuesday Blitz May 24 Early 2022"]
[White "Politov, Pavel Y."]
[Black "Ambartsumova, Karina"]
[WhiteFideId "24110515"]
[BlackFideId "4166299"]
[WhiteElo "2090"]
[BlackElo "2262"]
[Result "0-1"]
[Round "01"]
[TimeControl "180+1"]
[Date "2022.05.25"]
[WhiteClock "0:00:02"]
[BlackClock "0:00:09"]

1. e4 {[%clk 0:02:51]}  e5 {[%clk 0:02:59]} 2. Nf3 {[%clk 0:02:51]}  Nc6 {[%clk 0:02:59]} 3. Bc4 {[%clk 0:02:50]}  Bc5 {[%clk 0:02:58]} 4. O-O {[%clk 0:02:49]}  Nf6 {[%clk 0:02:58]} 5. d3 {[%clk 0:02:49]}  O-O {[%clk 0:02:57]} 6. Nbd2 {[%clk 0:02:49]}  h6 {[%clk 0:02:52]} 7. h3 {[%clk 0:02:46]}  d5 {[%clk 0:02:48]} 8. exd5 {[%clk 0:02:45]}  Nxd5 {[%clk 0:02:48]} 9. Re1 {[%clk 0:02:38]}  Re8 {[%clk 0:02:48]} 10. Bb5 {[%clk 0:02:01]}  f6 {[%clk 0:02:38]} 11. Bxc6 {[%clk 0:01:59]}  bxc6 {[%clk 0:02:37]} 12. Nc4 {[%clk 0:01:45]}  Bf8 {[%clk 0:02:26]} 13. Be3 {[%clk 0:01:29]}  Bf5 {[%clk 0:02:24]} 14. Qd2 {[%clk 0:01:24]}  Qd7 {[%clk 0:02:23]} 15. Rad1 {[%clk 0:01:18]}  a6 {[%clk 0:01:37]} 16. d4 {[%clk 0:00:50]}  e4 {[%clk 0:01:33]} 17. Nh2 {[%clk 0:00:41]}  Rab8 {[%clk 0:01:14]} 18. a3 {[%clk 0:00:36]}  h5 {[%clk 0:01:07]} 19. b3 {[%clk 0:00:33]}  Rbd8 {[%clk 0:00:41]} 20. b4 {[%clk 0:00:25]}  Qf7 {[%clk 0:00:33]} 21. Na5 {[%clk 0:00:22]}  Qe6 {[%clk 0:00:30]} 22. c4 {[%clk 0:00:20]}  Nb6 {[%clk 0:00:27]} 23. Rc1 {[%clk 0:00:14]}  Qd7 {[%clk 0:00:20]} 24. Nb7 {[%clk 0:00:13]}  Rb8 {[%clk 0:00:19]} 25. Nc5 {[%clk 0:00:11]}  Qf7 {[%clk 0:00:19]} 26. Bf4 {[%clk 0:00:09]}  Nxc4 {[%clk 0:00:18]} 27. Qa2 {[%clk 0:00:07]}  Nd6 {[%clk 0:00:18]} 28. Qxf7+ {[%clk 0:00:07]}  Kxf7 {[%clk 0:00:19]} 29. g4 {[%clk 0:00:05]}  hxg4 {[%clk 0:00:18]} 30. hxg4 {[%clk 0:00:06]}  Bg6 {[%clk 0:00:17]} 31. Nxa6 {[%clk 0:00:06]}  Rb6 {[%clk 0:00:13]} 32. Nxc7 {[%clk 0:00:06]}  Rc8 {[%clk 0:00:13]} 33. Bxd6 {[%clk 0:00:05]}  Bxd6 {[%clk 0:00:13]} 34. Nd5 {[%clk 0:00:05]}  Ra6 {[%clk 0:00:11]} 35. Ne3 {[%clk 0:00:02]}  Rxa3 {[%clk 0:00:11]} 36. Rc4 {[%clk 0:00:02]}  Rb3 {[%clk 0:00:11]} 37. Rec1 {[%clk 0:00:03]}  Rxb4 {[%clk 0:00:11]} 38. Rxc6 {[%clk 0:00:03]}  Rxc6 {[%clk 0:00:11]} 39. Rxc6 {[%clk 0:00:04]}  Rb1+ {[%clk 0:00:10]} 40. Kg2 {[%clk 0:00:04]}  Bf4 {[%clk 0:00:10]} 41. Nf5 {[%clk 0:00:03]}  Bxf5 {[%clk 0:00:09]} 42. gxf5 {[%clk 0:00:04]}  Rb2 {[%clk 0:00:09]} 43. Ng4 {[%clk 0:00:03]}  e3 {[%clk 0:00:09]} 44. Kf3 {[%clk 0:00:03]}  e2 {[%clk 0:00:09]} 45. Re6 {[%clk 0:00:03]}  Rb3+ {[%clk 0:00:08]} 46. Kxf4 {[%clk 0:00:03]}  Rb2 {[%clk 0:00:07]} 47. Kf3 {[%clk 0:00:03]}  Rd2 {[%clk 0:00:07]} 48. Rxe2 {[%clk 0:00:03]}  Rxd4 {[%clk 0:00:07]} 49. Kg3 {[%clk 0:00:03]}  Rd3+ {[%clk 0:00:07]} 50. f3 {[%clk 0:00:03]}  Rd5 {[%clk 0:00:07]} 51. Re4 {[%clk 0:00:04]}  Rxf5 {[%clk 0:00:07]} 52. Rf4 {[%clk 0:00:04]}  Rb5 {[%clk 0:00:07]} 53. Kh4 {[%clk 0:00:04]}  g5+ {[%clk 0:00:06]} 54. Kg3 {[%clk 0:00:04]}  gxf4+ {[%clk 0:00:07]} 55. Kxf4 {[%clk 0:00:05]}  Rb4+ {[%clk 0:00:08]} 56. Kg3 {[%clk 0:00:05]}  Ra4 {[%clk 0:00:07]} 57. Nf2 {[%clk 0:00:06]}  Kg6 {[%clk 0:00:08]} 58. Ng4 {[%clk 0:00:05]}  f5 {[%clk 0:00:08]} 59. Nf2 {[%clk 0:00:04]}  Kg5 {[%clk 0:00:07]} 60. f4+ {[%clk 0:00:05]}  Kf6 {[%clk 0:00:06]} 61. Nh3 {[%clk 0:00:03]}  Ra3+ {[%clk 0:00:07]} 62. Kh2 {[%clk 0:00:02]}  Rf3 {[%clk 0:00:07]} 63. Kg2 {[%clk 0:00:02]}  Ra3 {[%clk 0:00:07]} 64. Kh2 {[%clk 0:00:03]}  Ke6 {[%clk 0:00:07]} 65. Kg2 {[%clk 0:00:02]}  Kd5 {[%clk 0:00:07]} 66. Kh2 {[%clk 0:00:02]}  Ke4 {[%clk 0:00:07]} 67. Kg2 {[%clk 0:00:02]}  Ra2+ {[%clk 0:00:06]} 68. Kg3 {[%clk 0:00:02]}  Ra3+ {[%clk 0:00:07]} 69. Kh4 {[%clk 0:00:03]}  Rxh3+ {[%clk 0:00:07]} 70. Kxh3 {[%clk 0:00:03]}  Kxf4 {[%clk 0:00:08]} 71. Kg2 {[%clk 0:00:03]}  Ke3 {[%clk 0:00:08]} 72. Kg3 {[%clk 0:00:03]}  f4+ {[%clk 0:00:08]} 73. Kg2 {[%clk 0:00:04]}  Ke2 {[%clk 0:00:08]} 74. Kg1 {[%clk 0:00:03]}  f3 {[%clk 0:00:09]} 75. Kh2 {[%clk 0:00:02]}  f2 {[%clk 0:00:09]} 76. Kg2 {[%clk 0:00:02]}  f1=Q+ {[%clk 0:00:09]} 0-1


[Site "https://www.chess.com"]

[Event "Titled Tuesday Blitz May 24 Early 2022"]
[White "Sargsyan, Anna M."]
[Black "Johnson, Ben"]
[WhiteFideId "13308130"]
[BlackFideId "2010917"]
[WhiteElo "2271"]
[BlackElo "2220"]
[Result "1-0"]
[Round "01"]
[TimeControl "180+1"]
[Date "2022.05.25"]
[WhiteClock "0:01:38"]
[BlackClock "0:00:16"]

1. d4 {[%clk 0:03:00]}  Nf6 {[%clk 0:02:59]} 2. c4 {[%clk 0:03:00]}  e6 {[%clk 0:02:58]} 3. Nf3 {[%clk 0:02:59]}  d5 {[%clk 0:02:57]} 4. Nc3 {[%clk 0:02:54]}  Bb4 {[%clk 0:02:57]} 5. Bg5 {[%clk 0:02:53]}  h6 {[%clk 0:02:57]} 6. Bxf6 {[%clk 0:02:53]}  Qxf6 {[%clk 0:02:58]} 7. Qa4+ {[%clk 0:02:52]}  Nc6 {[%clk 0:02:57]} 8. e3 {[%clk 0:02:53]}  O-O {[%clk 0:02:54]} 9. cxd5 {[%clk 0:02:51]}  exd5 {[%clk 0:02:52]} 10. Bd3 {[%clk 0:02:34]}  Bg4 {[%clk 0:02:37]} 11. Nd2 {[%clk 0:02:29]}  Rad8 {[%clk 0:02:11]} 12. O-O {[%clk 0:02:27]}  Rfe8 {[%clk 0:02:08]} 13. Rac1 {[%clk 0:02:26]}  Bf8 {[%clk 0:01:51]} 14. Bb1 {[%clk 0:02:25]}  Bf5 {[%clk 0:01:46]} 15. Qb3 {[%clk 0:02:21]}  Bxb1 {[%clk 0:01:20]} 16. Ndxb1 {[%clk 0:02:05]}  Qd6 {[%clk 0:01:02]} 17. Qxb7 {[%clk 0:01:57]}  Rb8 {[%clk 0:01:00]} 18. Qa6 {[%clk 0:01:55]}  Rxb2 {[%clk 0:00:51]} 19. Nb5 {[%clk 0:01:54]}  Rxb5 {[%clk 0:00:21]} 20. Qxb5 {[%clk 0:01:51]}  Re6 {[%clk 0:00:20]} 21. Qa6 {[%clk 0:01:43]}  Nxd4 {[%clk 0:00:17]} 22. Qxd6 {[%clk 0:01:37]}  Ne2+ {[%clk 0:00:16]} 23. Kh1 {[%clk 0:01:38]}  Bxd6 {[%clk 0:00:16]} 24. Rc2 {[%clk 0:01:38]} 1-0


[Site "https://www.chess.com"]

[Event "Titled Tuesday Blitz May 24 Early 2022"]
[White "Seo, Jung Min"]
[Black "Ljukin, Sergei"]
[WhiteFideId "1734687"]
[BlackFideId "14102200"]
[WhiteElo "2401"]
[BlackElo "2312"]
[Result "1-0"]
[Round "01"]
[TimeControl "180+1"]
[Date "2022.05.25"]
[WhiteClock "0:01:09"]
[BlackClock "0:00:04"]

1. d4 {[%clk 0:02:55]}  d5 {[%clk 0:02:59]} 2. c4 {[%clk 0:02:55]}  c6 {[%clk 0:02:58]} 3. Nf3 {[%clk 0:02:55]}  Nf6 {[%clk 0:02:58]} 4. e3 {[%clk 0:02:54]}  e6 {[%clk 0:02:57]} 5. b3 {[%clk 0:02:53]}  Bb4+ {[%clk 0:02:55]} 6. Bd2 {[%clk 0:02:52]}  Bd6 {[%clk 0:02:52]} 7. Bd3 {[%clk 0:02:52]}  O-O {[%clk 0:02:50]} 8. O-O {[%clk 0:02:52]}  Nbd7 {[%clk 0:02:50]} 9. Bc3 {[%clk 0:02:51]}  Qe7 {[%clk 0:02:46]} 10. Nbd2 {[%clk 0:02:50]}  e5 {[%clk 0:02:46]} 11. dxe5 {[%clk 0:02:50]}  Nxe5 {[%clk 0:02:46]} 12. Nxe5 {[%clk 0:02:50]}  Bxe5 {[%clk 0:02:47]} 13. Bxe5 {[%clk 0:02:50]}  Qxe5 {[%clk 0:02:47]} 14. Qc2 {[%clk 0:02:50]}  Bg4 {[%clk 0:02:38]} 15. cxd5 {[%clk 0:02:46]}  cxd5 {[%clk 0:02:32]} 16. h3 {[%clk 0:02:43]}  Bh5 {[%clk 0:02:31]} 17. Rac1 {[%clk 0:02:41]}  Bg6 {[%clk 0:02:02]} 18. Bxg6 {[%clk 0:02:39]}  hxg6 {[%clk 0:02:02]} 19. Nf3 {[%clk 0:02:39]}  Qe7 {[%clk 0:01:57]} 20. Qc7 {[%clk 0:02:36]}  Rfe8 {[%clk 0:01:52]} 21. Rfd1 {[%clk 0:02:35]}  Rad8 {[%clk 0:01:45]} 22. Nd4 {[%clk 0:02:33]}  Rd7 {[%clk 0:01:38]} 23. Qa5 {[%clk 0:02:31]}  a6 {[%clk 0:01:36]} 24. Qd2 {[%clk 0:02:22]}  Ne4 {[%clk 0:01:35]} 25. Qc2 {[%clk 0:02:21]}  Red8 {[%clk 0:01:21]} 26. Rd3 {[%clk 0:02:18]}  Qf6 {[%clk 0:01:04]} 27. Rcd1 {[%clk 0:02:16]}  Qe7 {[%clk 0:00:34]} 28. Ne2 {[%clk 0:02:12]}  Rc7 {[%clk 0:00:31]} 29. Qb2 {[%clk 0:02:11]}  Rcd7 {[%clk 0:00:27]} 30. Nf4 {[%clk 0:02:10]}  Nf6 {[%clk 0:00:25]} 31. Rd4 {[%clk 0:02:09]}  g5 {[%clk 0:00:20]} 32. Ne2 {[%clk 0:02:09]}  Rc7 {[%clk 0:00:20]} 33. Nc3 {[%clk 0:02:07]}  Rdc8 {[%clk 0:00:17]} 34. Nxd5 {[%clk 0:01:56]}  Nxd5 {[%clk 0:00:17]} 35. Rxd5 {[%clk 0:01:56]}  Rc2 {[%clk 0:00:17]} 36. Rd8+ {[%clk 0:01:46]}  Kh7 {[%clk 0:00:17]} 37. Qb1 {[%clk 0:01:46]}  Qf6 {[%clk 0:00:13]} 38. R8d2 {[%clk 0:01:38]}  Qg6 {[%clk 0:00:12]} 39. Rxc2 {[%clk 0:01:35]}  Rxc2 {[%clk 0:00:12]} 40. a4 {[%clk 0:01:34]}  Kg8 {[%clk 0:00:10]} 41. Rc1 {[%clk 0:01:30]}  Rxc1+ {[%clk 0:00:10]} 42. Qxc1 {[%clk 0:01:30]}  Qe6 {[%clk 0:00:08]} 43. Qc3 {[%clk 0:01:29]}  f6 {[%clk 0:00:06]} 44. Qc4 {[%clk 0:01:26]}  Qxc4 {[%clk 0:00:06]} 45. bxc4 {[%clk 0:01:18]}  Kf7 {[%clk 0:00:07]} 46. Kf1 {[%clk 0:01:17]}  Ke6 {[%clk 0:00:08]} 47. Ke2 {[%clk 0:01:16]}  Kd6 {[%clk 0:00:09]} 48. Kd3 {[%clk 0:01:17]}  Kc5 {[%clk 0:00:09]} 49. Kc3 {[%clk 0:01:17]}  a5 {[%clk 0:00:06]} 50. f4 {[%clk 0:01:09]}  gxf4 {[%clk 0:00:04]} 51. exf4 {[%clk 0:01:10]}  f5 {[%clk 0:00:04]} 52. g4 {[%clk 0:01:10]}  fxg4 {[%clk 0:00:04]} 53. hxg4 {[%clk 0:01:09]}  b6 {[%clk 0:00:04]} 54. f5 {[%clk 0:01:09]}  Kd6 {[%clk 0:00:04]} 55. Kd4 {[%clk 0:01:09]} 1-0


[Site "https://www.chess.com"]

[Event "Titled Tuesday Blitz May 24 Early 2022"]
[White "Shton, Roman"]
[Black "Tologon tegin, Semetei"]
[WhiteFideId "14137461"]
[BlackFideId "13800574"]
[WhiteElo "2013"]
[BlackElo "2258"]
[Result "1/2-1/2"]
[Round "01"]
[TimeControl "180+1"]
[Date "2022.05.25"]
[WhiteClock "0:00:27"]
[BlackClock "0:00:19"]

1. d4 {[%clk 0:03:00]}  Nf6 {[%clk 0:02:58]} 2. Nf3 {[%clk 0:02:59]}  g6 {[%clk 0:02:58]} 3. c4 {[%clk 0:02:59]}  Bg7 {[%clk 0:02:57]} 4. Nc3 {[%clk 0:02:59]}  d5 {[%clk 0:02:57]} 5. cxd5 {[%clk 0:03:00]}  Nxd5 {[%clk 0:02:57]} 6. e4 {[%clk 0:03:01]}  Nxc3 {[%clk 0:02:57]} 7. bxc3 {[%clk 0:03:02]}  c5 {[%clk 0:02:57]} 8. Be3 {[%clk 0:02:59]}  O-O {[%clk 0:02:56]} 9. Be2 {[%clk 0:02:59]}  Qa5 {[%clk 0:02:55]} 10. Qd2 {[%clk 0:02:54]}  Nc6 {[%clk 0:02:52]} 11. Rc1 {[%clk 0:02:33]}  cxd4 {[%clk 0:02:31]} 12. cxd4 {[%clk 0:02:34]}  Qxd2+ {[%clk 0:02:31]} 13. Kxd2 {[%clk 0:02:33]}  Rd8 {[%clk 0:02:32]} 14. d5 {[%clk 0:02:33]}  e6 {[%clk 0:02:31]} 15. Bc4 {[%clk 0:02:32]}  exd5 {[%clk 0:02:30]} 16. exd5 {[%clk 0:02:31]}  Be6 {[%clk 0:02:30]} 17. Ke2 {[%clk 0:02:09]}  Bxd5 {[%clk 0:02:11]} 18. Bxd5 {[%clk 0:02:10]}  Rxd5 {[%clk 0:02:08]} 19. Rb1 {[%clk 0:02:11]}  Rd7 {[%clk 0:01:21]} 20. Rhc1 {[%clk 0:02:06]}  Re8 {[%clk 0:01:09]} 21. Kf1 {[%clk 0:02:04]}  h6 {[%clk 0:01:00]} 22. h4 {[%clk 0:02:04]}  Re6 {[%clk 0:00:59]} 23. g3 {[%clk 0:02:03]}  b6 {[%clk 0:00:55]} 24. Rc4 {[%clk 0:01:59]}  Ne5 {[%clk 0:00:54]} 25. Rc8+ {[%clk 0:01:53]}  Kh7 {[%clk 0:00:53]} 26. Nd4 {[%clk 0:01:50]}  Ree7 {[%clk 0:00:51]} 27. Nb5 {[%clk 0:01:33]}  Nd3 {[%clk 0:00:40]} 28. Rd1 {[%clk 0:01:21]}  Nb4 {[%clk 0:00:32]} 29. Rxd7 {[%clk 0:01:14]}  Rxd7 {[%clk 0:00:33]} 30. a4 {[%clk 0:01:11]}  Nd5 {[%clk 0:00:32]} 31. Ra8 {[%clk 0:00:59]}  Nxe3+ {[%clk 0:00:19]} 32. fxe3 {[%clk 0:01:00]}  a5 {[%clk 0:00:19]} 33. Rb8 {[%clk 0:00:53]}  Re7 {[%clk 0:00:19]} 34. Kf2 {[%clk 0:00:50]}  Re4 {[%clk 0:00:19]} 35. Rxb6 {[%clk 0:00:44]}  Rxa4 {[%clk 0:00:19]} 36. Ra6 {[%clk 0:00:42]}  Ra2+ {[%clk 0:00:18]} 37. Kf3 {[%clk 0:00:42]}  a4 {[%clk 0:00:19]} 38. Ra7 {[%clk 0:00:39]}  f5 {[%clk 0:00:18]} 39. Nc3 {[%clk 0:00:37]}  Ra1 {[%clk 0:00:17]} 40. Nxa4 {[%clk 0:00:35]}  h5 {[%clk 0:00:16]} 41. Ra6 {[%clk 0:00:25]}  Kh6 {[%clk 0:00:16]} 42. Nc5 {[%clk 0:00:25]}  Rf1+ {[%clk 0:00:15]} 43. Kg2 {[%clk 0:00:24]}  Re1 {[%clk 0:00:16]} 44. Kf2 {[%clk 0:00:24]}  Rc1 {[%clk 0:00:16]} 45. Ne6 {[%clk 0:00:22]}  Be5 {[%clk 0:00:15]} 46. Nf4 {[%clk 0:00:21]}  Bxf4 {[%clk 0:00:14]} 47. exf4 {[%clk 0:00:22]}  Rc3 {[%clk 0:00:14]} 48. Rb6 {[%clk 0:00:21]}  Rc4 {[%clk 0:00:14]} 49. Ra6 {[%clk 0:00:21]}  Rd4 {[%clk 0:00:14]} 50. Rb6 {[%clk 0:00:22]}  Re4 {[%clk 0:00:15]} 51. Ra6 {[%clk 0:00:22]}  Kg7 {[%clk 0:00:15]} 52. Rb6 {[%clk 0:00:22]}  Kf7 {[%clk 0:00:15]} 53. Ra6 {[%clk 0:00:23]}  Re7 {[%clk 0:00:16]} 54. Rb6 {[%clk 0:00:23]}  Rd7 {[%clk 0:00:16]} 55. Ra6 {[%clk 0:00:23]}  Rb7 {[%clk 0:00:16]} 56. Rc6 {[%clk 0:00:23]}  Ra7 {[%clk 0:00:17]} 57. Rb6 {[%clk 0:00:23]}  Ra2+ {[%clk 0:00:17]} 58. Kf3 {[%clk 0:00:23]}  Ra3+ {[%clk 0:00:18]} 59. Kf2 {[%clk 0:00:23]}  Ra7 {[%clk 0:00:18]} 60. Kf3 {[%clk 0:00:24]}  Rc7 {[%clk 0:00:18]} 61. Kf2 {[%clk 0:00:23]}  Re7 {[%clk 0:00:18]} 62. Kf3 {[%clk 0:00:23]}  Re8 {[%clk 0:00:18]} 63. Rb7+ {[%clk 0:00:24]}  Kf6 {[%clk 0:00:18]} 64. Rb6+ {[%clk 0:00:24]}  Kf7 {[%clk 0:00:17]} 65. Kf2 {[%clk 0:00:24]}  Re6 {[%clk 0:00:17]} 66. Rb7+ {[%clk 0:00:24]}  Kf6 {[%clk 0:00:17]} 67. Ra7 {[%clk 0:00:24]}  Rb6 {[%clk 0:00:16]} 68. Kf3 {[%clk 0:00:24]}  Rc6 {[%clk 0:00:17]} 69. Kf2 {[%clk 0:00:25]}  Rd6 {[%clk 0:00:17]} 70. Kf3 {[%clk 0:00:25]}  Re6 {[%clk 0:00:17]} 71. Kf2 {[%clk 0:00:25]}  Rc6 {[%clk 0:00:18]} 72. Kf3 {[%clk 0:00:26]}  Rc2 {[%clk 0:00:18]} 73. Ra6+ {[%clk 0:00:25]}  Kf7 {[%clk 0:00:18]} 74. Ra7+ {[%clk 0:00:26]}  Ke6 {[%clk 0:00:19]} 75. Ra6+ {[%clk 0:00:27]}  Kf7 {[%clk 0:00:19]} 76. Ra7+ {[%clk 0:00:27]}  Kf6 {[%clk 0:00:20]} 77. Ra6+ {[%clk 0:00:28]}  Kg7 {[%clk 0:00:20]} 78. Ra7+ {[%clk 0:00:28]}  Kh6 {[%clk 0:00:21]} 79. Ra6 {[%clk 0:00:29]}  Rc4 {[%clk 0:00:21]} 80. Kf2 {[%clk 0:00:29]}  Rc5 {[%clk 0:00:21]} 81. Kf3 {[%clk 0:00:29]}  Rc7 {[%clk 0:00:21]} 82. Kf2 {[%clk 0:00:29]}  Kg7 {[%clk 0:00:21]} 83. Kf3 {[%clk 0:00:30]}  Rb7 {[%clk 0:00:21]} 84. Kf2 {[%clk 0:00:30]}  Kf7 {[%clk 0:00:22]} 85. Kf3 {[%clk 0:00:30]}  Re7 {[%clk 0:00:22]} 86. Kf2 {[%clk 0:00:30]}  Re6 {[%clk 0:00:23]} 87. Ra7+ {[%clk 0:00:31]}  Kf6 {[%clk 0:00:23]} 88. Kf3 {[%clk 0:00:31]}  Rb6 {[%clk 0:00:23]} 89. Kf2 {[%clk 0:00:30]}  Ke6 {[%clk 0:00:23]} 90. Kf3 {[%clk 0:00:30]}  Kd5 {[%clk 0:00:23]} 91. Rd7+ {[%clk 0:00:29]}  Kc4 {[%clk 0:00:23]} 92. Rd8 {[%clk 0:00:28]}  Re6 {[%clk 0:00:21]} 93. Rg8 {[%clk 0:00:27]}  Rd6 {[%clk 0:00:19]} 94. Rg7 {[%clk 0:00:27]}  Kd3 {[%clk 0:00:19]} 95. Rg8 {[%clk 0:00:27]}  Kd2 {[%clk 0:00:19]} 96. Rg7 {[%clk 0:00:27]}  Ke1 {[%clk 0:00:19]} 97. Rg8 {[%clk 0:00:27]} 1/2-1/2


[Site "https://www.chess.com"]

[Event "Titled Tuesday Blitz May 24 Early 2022"]
[White "Shtyka, Sergey"]
[Black "Vasquez Schroeder, Rodrigo"]
[WhiteFideId "4138465"]
[BlackFideId "3400042"]
[WhiteElo "2014"]
[BlackElo "2567"]
[Result "0-1"]
[Round "01"]
[TimeControl "180+1"]
[Date "2022.05.25"]
[WhiteClock "0:00:02"]
[BlackClock "0:01:08"]

1. e4 {[%clk 0:02:56]}  c5 {[%clk 0:02:59]} 2. Nf3 {[%clk 0:02:55]}  d6 {[%clk 0:02:59]} 3. d4 {[%clk 0:02:55]}  cxd4 {[%clk 0:02:59]} 4. Nxd4 {[%clk 0:02:56]}  Nf6 {[%clk 0:02:59]} 5. Nc3 {[%clk 0:02:56]}  a6 {[%clk 0:02:59]} 6. Bc4 {[%clk 0:02:56]}  e6 {[%clk 0:02:59]} 7. O-O {[%clk 0:02:55]}  b5 {[%clk 0:02:59]} 8. Bd3 {[%clk 0:02:55]}  Bb7 {[%clk 0:02:57]} 9. a3 {[%clk 0:02:55]}  Nbd7 {[%clk 0:02:56]} 10. f4 {[%clk 0:02:51]}  Be7 {[%clk 0:02:54]} 11. Qf3 {[%clk 0:02:51]}  Qc7 {[%clk 0:02:52]} 12. Be3 {[%clk 0:02:51]}  O-O {[%clk 0:02:51]} 13. Rae1 {[%clk 0:02:50]}  g6 {[%clk 0:02:50]} 14. Qh3 {[%clk 0:02:29]}  Nc5 {[%clk 0:02:35]} 15. Bf2 {[%clk 0:02:23]}  e5 {[%clk 0:02:31]} 16. fxe5 {[%clk 0:02:13]}  dxe5 {[%clk 0:02:31]} 17. Nf3 {[%clk 0:02:08]}  Nxd3 {[%clk 0:02:24]} 18. cxd3 {[%clk 0:02:07]}  Nh5 {[%clk 0:02:23]} 19. Bg3 {[%clk 0:01:25]}  Bc8 {[%clk 0:02:13]} 20. Nd5 {[%clk 0:01:24]}  Qa7+ {[%clk 0:02:07]} 21. Bf2 {[%clk 0:01:21]}  Bc5 {[%clk 0:01:57]} 22. Qh4 {[%clk 0:01:13]}  Be6 {[%clk 0:01:50]} 23. Nf6+ {[%clk 0:01:06]}  Nxf6 {[%clk 0:01:50]} 24. Qxf6 {[%clk 0:01:07]}  Rad8 {[%clk 0:01:42]} 25. Nxe5 {[%clk 0:01:02]}  Bxf2+ {[%clk 0:01:41]} 26. Qxf2 {[%clk 0:00:59]}  Qxf2+ {[%clk 0:01:38]} 27. Rxf2 {[%clk 0:00:59]}  f6 {[%clk 0:01:38]} 28. Nc6 {[%clk 0:00:50]}  Rxd3 {[%clk 0:01:38]} 29. Nb4 {[%clk 0:00:44]}  Rd6 {[%clk 0:01:38]} 30. e5 {[%clk 0:00:41]}  fxe5 {[%clk 0:01:38]} 31. Rxf8+ {[%clk 0:00:41]}  Kxf8 {[%clk 0:01:37]} 32. Rxe5 {[%clk 0:00:41]}  Bc4 {[%clk 0:01:34]} 33. Re1 {[%clk 0:00:30]}  a5 {[%clk 0:01:33]} 34. Nc2 {[%clk 0:00:27]}  Rd2 {[%clk 0:01:33]} 35. Ne3 {[%clk 0:00:20]}  Bb3 {[%clk 0:01:31]} 36. Ng4 {[%clk 0:00:15]}  Rxb2 {[%clk 0:01:29]} 37. Nf6 {[%clk 0:00:15]}  h5 {[%clk 0:01:27]} 38. Nd7+ {[%clk 0:00:15]}  Kf7 {[%clk 0:01:25]} 39. Ne5+ {[%clk 0:00:14]}  Kg7 {[%clk 0:01:25]} 40. Nd3 {[%clk 0:00:15]}  Rd2 {[%clk 0:01:25]} 41. Nc5 {[%clk 0:00:15]}  Bc4 {[%clk 0:01:25]} 42. h4 {[%clk 0:00:15]}  Rd5 {[%clk 0:01:24]} 43. Ne6+ {[%clk 0:00:14]}  Kf6 {[%clk 0:01:23]} 44. Ng5 {[%clk 0:00:14]}  Rd4 {[%clk 0:01:21]} 45. Ne4+ {[%clk 0:00:13]}  Kf5 {[%clk 0:01:20]} 46. Nc5 {[%clk 0:00:06]}  Rxh4 {[%clk 0:01:16]} 47. a4 {[%clk 0:00:06]}  bxa4 {[%clk 0:01:15]} 48. Nxa4 {[%clk 0:00:04]}  Rg4 {[%clk 0:01:14]} 49. Nc5 {[%clk 0:00:04]}  Bd5 {[%clk 0:01:14]} 50. Re2 {[%clk 0:00:04]}  h4 {[%clk 0:01:12]} 51. Kh1 {[%clk 0:00:05]}  h3 {[%clk 0:01:11]} 52. Kh2 {[%clk 0:00:05]}  hxg2 {[%clk 0:01:11]} 53. Kg1 {[%clk 0:00:05]}  Rh4 {[%clk 0:01:09]} 54. Rf2+ {[%clk 0:00:04]}  Kg5 {[%clk 0:01:09]} 55. Ne4+ {[%clk 0:00:02]}  Bxe4 {[%clk 0:01:08]} 0-1


[Site "https://www.chess.com"]

[Event "Titled Tuesday Blitz May 24 Early 2022"]
[White "Sjugirov, Sanan"]
[Black "Gracia Alvarez, Gerardo Antonio"]
[WhiteFideId "4189302"]
[BlackFideId "5109124"]
[WhiteElo "2602"]
[BlackElo "2139"]
[Result "1-0"]
[Round "01"]
[TimeControl "180+1"]
[Date "2022.05.24"]
[WhiteClock "0:00:39"]
[BlackClock "0:00:06"]

1. e4 {[%clk 0:03:00]}  c5 {[%clk 0:03:00]} 2. Nc3 {[%clk 0:03:00]}  Nc6 {[%clk 0:03:00]} 3. Nge2 {[%clk 0:02:59]}  g6 {[%clk 0:02:56]} 4. d4 {[%clk 0:02:58]}  cxd4 {[%clk 0:02:55]} 5. Nxd4 {[%clk 0:02:59]}  Bg7 {[%clk 0:02:55]} 6. Be3 {[%clk 0:03:00]}  Nf6 {[%clk 0:02:55]} 7. Bc4 {[%clk 0:02:59]}  O-O {[%clk 0:02:52]} 8. Bb3 {[%clk 0:02:58]}  Re8 {[%clk 0:02:41]} 9. O-O {[%clk 0:02:52]}  d6 {[%clk 0:02:39]} 10. h3 {[%clk 0:02:51]}  Na5 {[%clk 0:02:37]} 11. f4 {[%clk 0:02:50]}  b6 {[%clk 0:02:36]} 12. e5 {[%clk 0:02:40]}  Nxb3 {[%clk 0:02:14]} 13. axb3 {[%clk 0:02:37]}  dxe5 {[%clk 0:01:40]} 14. fxe5 {[%clk 0:02:34]}  Nd5 {[%clk 0:01:27]} 15. Qf3 {[%clk 0:02:05]}  Nxe3 {[%clk 0:01:26]} 16. Qxe3 {[%clk 0:01:55]}  Bb7 {[%clk 0:01:26]} 17. Rad1 {[%clk 0:01:54]}  Qc7 {[%clk 0:01:26]} 18. Qf2 {[%clk 0:01:44]}  Rf8 {[%clk 0:01:11]} 19. e6 {[%clk 0:01:29]}  f5 {[%clk 0:00:53]} 20. Ndb5 {[%clk 0:01:20]}  Qc6 {[%clk 0:00:49]} 21. Rd7 {[%clk 0:01:20]}  Ba6 {[%clk 0:00:43]} 22. Rc7 {[%clk 0:00:45]}  Qxe6 {[%clk 0:00:40]} 23. Re1 {[%clk 0:00:44]}  Be5 {[%clk 0:00:21]} 24. Qe3 {[%clk 0:00:41]}  Rad8 {[%clk 0:00:06]} 25. Qxe5 {[%clk 0:00:39]} 1-0


[Site "https://www.chess.com"]

[Event "Titled Tuesday Blitz May 24 Early 2022"]
[White "Sokolovsky, Yahli"]
[Black "Kostiukov, Alexandr"]
[WhiteFideId "2820242"]
[BlackFideId "14108100"]
[WhiteElo "1770"]
[BlackElo "2202"]
[Result "1-0"]
[Round "01"]
[TimeControl "180+1"]
[Date "2022.05.25"]
[WhiteClock "0:00:22"]
[BlackClock "0:00:08"]

1. b3 {[%clk 0:02:50]}  Nf6 {[%clk 0:02:52]} 2. Bb2 {[%clk 0:02:50]}  g6 {[%clk 0:02:49]} 3. d4 {[%clk 0:02:50]}  Bg7 {[%clk 0:02:47]} 4. Nf3 {[%clk 0:02:50]}  O-O {[%clk 0:02:45]} 5. g3 {[%clk 0:02:51]}  c5 {[%clk 0:02:29]} 6. d5 {[%clk 0:02:43]}  d6 {[%clk 0:02:25]} 7. Bg2 {[%clk 0:02:43]}  b5 {[%clk 0:02:14]} 8. O-O {[%clk 0:02:43]}  a5 {[%clk 0:02:13]} 9. Re1 {[%clk 0:02:40]}  b4 {[%clk 0:02:12]} 10. c4 {[%clk 0:02:28]}  a4 {[%clk 0:02:06]} 11. a3 {[%clk 0:02:28]}  axb3 {[%clk 0:02:04]} 12. axb4 {[%clk 0:02:29]}  Rxa1 {[%clk 0:02:01]} 13. Bxa1 {[%clk 0:02:29]}  Qb6 {[%clk 0:01:46]} 14. b5 {[%clk 0:02:15]}  e6 {[%clk 0:01:36]} 15. e4 {[%clk 0:02:03]}  exd5 {[%clk 0:01:32]} 16. exd5 {[%clk 0:02:04]}  Bf5 {[%clk 0:01:22]} 17. Qxb3 {[%clk 0:02:01]}  Nbd7 {[%clk 0:01:17]} 18. Nbd2 {[%clk 0:01:58]}  Re8 {[%clk 0:01:06]} 19. Rxe8+ {[%clk 0:01:50]}  Nxe8 {[%clk 0:01:07]} 20. Bxg7 {[%clk 0:01:50]}  Kxg7 {[%clk 0:01:03]} 21. Nh4 {[%clk 0:01:48]}  Qa5 {[%clk 0:00:52]} 22. Nxf5+ {[%clk 0:01:47]}  gxf5 {[%clk 0:00:52]} 23. Qb2+ {[%clk 0:01:42]}  Kg6 {[%clk 0:00:48]} 24. Nf3 {[%clk 0:01:30]}  Qb4 {[%clk 0:00:31]} 25. Nh4+ {[%clk 0:01:28]}  Kg5 {[%clk 0:00:23]} 26. f4+ {[%clk 0:01:18]}  Kh6 {[%clk 0:00:22]} 27. Nxf5+ {[%clk 0:01:18]}  Kg6 {[%clk 0:00:20]} 28. Qc2 {[%clk 0:00:54]}  Qe1+ {[%clk 0:00:15]} 29. Bf1 {[%clk 0:00:55]}  Kf6 {[%clk 0:00:15]} 30. Kg2 {[%clk 0:00:44]}  Ng7 {[%clk 0:00:13]} 31. Nxd6 {[%clk 0:00:29]}  Ke7 {[%clk 0:00:09]} 32. Qe4+ {[%clk 0:00:25]}  Qxe4+ {[%clk 0:00:08]} 33. Nxe4 {[%clk 0:00:26]}  Ne8 {[%clk 0:00:05]} 34. Kf3 {[%clk 0:00:23]}  Nd6 {[%clk 0:00:06]} 35. Nxd6 {[%clk 0:00:22]}  Kxd6 {[%clk 0:00:07]} 36. Bd3 {[%clk 0:00:23]}  h6 {[%clk 0:00:06]} 37. g4 {[%clk 0:00:23]}  f6 {[%clk 0:00:06]} 38. h4 {[%clk 0:00:23]}  Nb6 {[%clk 0:00:07]} 39. g5 {[%clk 0:00:23]}  fxg5 {[%clk 0:00:08]} 40. fxg5 {[%clk 0:00:23]}  hxg5 {[%clk 0:00:08]} 41. h5 {[%clk 0:00:24]}  Nd7 {[%clk 0:00:08]} 42. h6 {[%clk 0:00:23]}  Nf6 {[%clk 0:00:08]} 43. h7 {[%clk 0:00:22]} 1-0


[Site "https://www.chess.com"]